[Event "*** Titled Tuesday Blitz"]
[Site "Chess.com"]
[Date "2019.12.03"]
[Round "5"]
[White "SmirnovAlexandrA"]
[Black "HouseOfDurin"]
[Result "1-0"]
[WhiteElo "2388"]
[BlackElo "2116"]
[TimeControl "180+2"]
[EndTime "14:07:29 PST"]
[Termination "SmirnovAlexandrA won by resignation"]

1. e4 {[%clk 0:03:01.9]} 1... c5 {[%clk 0:03:01]} 2. Nf3 {[%clk 0:03:02.1]} 2...
Nc6 {[%clk 0:03:02.5]} 3. Nc3 {[%clk 0:03:01.4]} 3... e5 {[%clk 0:03:01.5]} 4.
Bc4 {[%clk 0:03:01.7]} 4... g6 {[%clk 0:03:02.2]} 5. d3 {[%clk 0:02:59.5]} 5...
h6 {[%clk 0:03:03.3]} 6. O-O {[%clk 0:02:56.9]} 6... Bg7 {[%clk 0:03:04]} 7. Ne1
{[%clk 0:02:52.7]} 7... Nge7 {[%clk 0:02:43.9]} 8. f4 {[%clk 0:02:52.4]} 8... d6
{[%clk 0:02:35.7]} 9. Nf3 {[%clk 0:02:39.3]} 9... O-O {[%clk 0:02:27.7]} 10. h3
{[%clk 0:02:38.1]} 10... Na5 {[%clk 0:01:49.1]} 11. Bd5 {[%clk 0:02:34.6]} 11...
Nxd5 {[%clk 0:01:48.2]} 12. Nxd5 {[%clk 0:02:36.5]} 12... f5 {[%clk 0:01:37.9]}
13. fxe5 {[%clk 0:02:33]} 13... dxe5 {[%clk 0:01:38.4]} 14. c4 {[%clk
0:02:27.8]} 14... Nc6 {[%clk 0:01:30.7]} 15. Be3 {[%clk 0:02:24.2]} 15... b6
{[%clk 0:01:30.6]} 16. Qd2 {[%clk 0:02:20.9]} 16... Kh7 {[%clk 0:01:30.9]} 17.
Rae1 {[%clk 0:02:15.8]} 17... fxe4 {[%clk 0:01:24.4]} 18. dxe4 {[%clk
0:02:14.8]} 18... Nd4 {[%clk 0:01:25.7]} 19. Nh2 {[%clk 0:02:00.9]} 19... Be6
{[%clk 0:01:01.7]} 20. Rxf8 {[%clk 0:01:58.3]} 20... Qxf8 {[%clk 0:01:03.3]} 21.
Rf1 {[%clk 0:01:58.7]} 21... Qd6 {[%clk 0:00:45]} 22. b3 {[%clk 0:01:40.6]}
22... Bxd5 {[%clk 0:00:37.3]} 23. cxd5 {[%clk 0:01:36.4]} 23... Rf8 {[%clk
0:00:38.7]} 24. Rxf8 {[%clk 0:01:20.6]} 24... Qxf8 {[%clk 0:00:39.6]} 25. Qf2
{[%clk 0:01:21]} 25... Qxf2+ {[%clk 0:00:39.2]} 26. Kxf2 {[%clk 0:01:22.5]}
26... h5 {[%clk 0:00:39.2]} 27. Nf3 {[%clk 0:01:22.2]} 27... Bf6 {[%clk
0:00:36.9]} 28. Nxd4 {[%clk 0:01:06.4]} 28... cxd4 {[%clk 0:00:37]} 29. Bd2
{[%clk 0:01:06.6]} 29... Be7 {[%clk 0:00:34]} 30. Ke2 {[%clk 0:01:07.1]} 30...
Kg7 {[%clk 0:00:31.6]} 31. Kd3 {[%clk 0:01:07.8]} 31... a6 {[%clk 0:00:27.9]}
32. a4 {[%clk 0:01:05.2]} 32... b5 {[%clk 0:00:22.4]} 33. Ba5 {[%clk 0:01:03]}
33... Bd6 {[%clk 0:00:21.2]} 34. Bd8 {[%clk 0:01:01.3]} 34... Kf7 {[%clk
0:00:21.8]} 35. g4 {[%clk 0:00:58]} 35... Ke8 {[%clk 0:00:17.3]} 36. Bg5 {[%clk
0:00:56.4]} 36... Kf7 {[%clk 0:00:18.3]} 37. Bd2 {[%clk 0:00:53.7]} 37... Ke8
{[%clk 0:00:19.2]} 38. Ke2 {[%clk 0:00:48.9]} 38... Kf7 {[%clk 0:00:19.7]} 39.
Kf3 {[%clk 0:00:49.9]} 39... Kf6 {[%clk 0:00:19]} 40. Ba5 {[%clk 0:00:47.7]}
40... hxg4+ {[%clk 0:00:15.4]} 41. hxg4 {[%clk 0:00:42.3]} 41... Kg5 {[%clk
0:00:15.8]} 42. Bd8+ {[%clk 0:00:41.7]} 42... Kh6 {[%clk 0:00:16.1]} 43. Bf6
{[%clk 0:00:41.2]} 43... g5 {[%clk 0:00:15.2]} 44. Ke2 {[%clk 0:00:37.9]} 44...
Kg6 {[%clk 0:00:16.2]} 45. Bd8 {[%clk 0:00:39.2]} 45... Kh6 {[%clk 0:00:16.9]}
46. Kd3 {[%clk 0:00:39.8]} 46... Kg6 {[%clk 0:00:17.9]} 47. Kc2 {[%clk
0:00:32.4]} 47... Kh6 {[%clk 0:00:18.3]} 48. Kd3 {[%clk 0:00:28]} 48... Kg6
{[%clk 0:00:19.6]} 49. axb5 {[%clk 0:00:20.9]} 49... axb5 {[%clk 0:00:19.9]} 50.
Bb6 {[%clk 0:00:21.6]} 50... b4 {[%clk 0:00:20.4]} 51. Kc4 {[%clk 0:00:19.8]}
51... Kf7 {[%clk 0:00:21.6]} 52. Ba5 {[%clk 0:00:18.2]} 52... Kf6 {[%clk
0:00:12.8]} 53. Bxb4 {[%clk 0:00:17.5]} 53... d3 {[%clk 0:00:13.9]} 54. Bd2
{[%clk 0:00:16.5]} 54... Ba3 {[%clk 0:00:10.9]} 55. Kxd3 {[%clk 0:00:17]} 55...
Bb2 {[%clk 0:00:11.7]} 56. Kc4 {[%clk 0:00:17.6]} 56... Bd4 {[%clk 0:00:12.7]}
57. b4 {[%clk 0:00:18]} 57... Bf2 {[%clk 0:00:13.8]} 58. b5 {[%clk 0:00:18.5]}
58... Bd4 {[%clk 0:00:12.1]} 59. Bb4 {[%clk 0:00:19]} 59... Kf7 {[%clk
0:00:11.9]} 60. Bc5 {[%clk 0:00:19.6]} 60... Bxc5 {[%clk 0:00:11.5]} 61. Kxc5
{[%clk 0:00:20.3]} 61... Ke7 {[%clk 0:00:13.4]} 62. Kc6 {[%clk 0:00:20.6]} 62...
Kd8 {[%clk 0:00:14.6]} 63. Kd6 {[%clk 0:00:21.5]} 63... Kc8 {[%clk 0:00:15.7]}
64. Kxe5 {[%clk 0:00:22.5]} 1-0

[Event "*** Titled Tuesday Blitz"]
[Site "Chess.com"]
[Date "2019.12.03"]
[Round "5"]
[White "1977Ivan"]
[Black "Parhamov"]
[Result "0-1"]
[WhiteElo "2780"]
[BlackElo "3094"]
[TimeControl "180+2"]
[EndTime "14:07:35 PST"]
[Termination "Parhamov won on time"]

1. d4 {[%clk 0:03:01.9]} 1... Nf6 {[%clk 0:02:59.3]} 2. c4 {[%clk 0:03:03.1]}
2... e6 {[%clk 0:02:59.9]} 3. Nc3 {[%clk 0:03:03.6]} 3... Bb4 {[%clk 0:03:00.1]}
4. Bd2 {[%clk 0:03:05]} 4... O-O {[%clk 0:02:59.9]} 5. Nf3 {[%clk 0:03:05.7]}
5... d5 {[%clk 0:02:55.6]} 6. e3 {[%clk 0:03:05.6]} 6... b6 {[%clk 0:02:56.8]}
7. Rc1 {[%clk 0:03:05.4]} 7... a5 {[%clk 0:02:57.8]} 8. cxd5 {[%clk 0:03:05.3]}
8... exd5 {[%clk 0:02:58.6]} 9. Ne5 {[%clk 0:03:00.5]} 9... Ba6 {[%clk
0:02:57.2]} 10. Bxa6 {[%clk 0:02:59.9]} 10... Rxa6 {[%clk 0:02:58.2]} 11. O-O
{[%clk 0:03:01.4]} 11... Bxc3 {[%clk 0:02:45.4]} 12. Bxc3 {[%clk 0:03:00.1]}
12... c5 {[%clk 0:02:43]} 13. Qa4 {[%clk 0:02:47.8]} 13... Qe8 {[%clk
0:02:30.1]} 14. Qxe8 {[%clk 0:02:46.8]} 14... Rxe8 {[%clk 0:02:31]} 15. dxc5
{[%clk 0:02:48.4]} 15... bxc5 {[%clk 0:02:32.1]} 16. Rfd1 {[%clk 0:02:49.7]}
16... a4 {[%clk 0:02:14.3]} 17. Nd3 {[%clk 0:02:45.6]} 17... Ne4 {[%clk
0:02:12.6]} 18. Nf4 {[%clk 0:02:46.3]} 18... a3 {[%clk 0:02:13]} 19. b3 {[%clk
0:02:39.5]} 19... d4 {[%clk 0:02:07.2]} 20. exd4 {[%clk 0:02:33.1]} 20... Nxc3
{[%clk 0:02:07]} 21. Rxc3 {[%clk 0:02:33.6]} 21... cxd4 {[%clk 0:02:08.4]} 22.
Rc4 {[%clk 0:02:29.8]} 22... g5 {[%clk 0:01:53.8]} 23. Nd3 {[%clk 0:02:30.2]}
23... Nc6 {[%clk 0:01:46.4]} 24. Kf1 {[%clk 0:02:27.5]} 24... Rd8 {[%clk
0:01:30.4]} 25. Rdc1 {[%clk 0:02:01.3]} 25... Rd6 {[%clk 0:01:31.1]} 26. Rc5
{[%clk 0:01:58.8]} 26... h6 {[%clk 0:01:29.2]} 27. R1c4 {[%clk 0:01:59.5]} 27...
Kg7 {[%clk 0:01:27.2]} 28. Ke2 {[%clk 0:01:50.8]} 28... Nd8 {[%clk 0:01:27.7]}
29. Kd2 {[%clk 0:01:49.2]} 29... Ne6 {[%clk 0:01:21.4]} 30. Rc8 {[%clk
0:01:42.9]} 30... Ra5 {[%clk 0:01:18.1]} 31. R4c6 {[%clk 0:01:32.3]} 31... Rd7
{[%clk 0:01:18.3]} 32. g4 {[%clk 0:01:26.8]} 32... Re7 {[%clk 0:01:05.8]} 33.
Rd6 {[%clk 0:01:24.3]} 33... Rb7 {[%clk 0:01:06.7]} 34. b4 {[%clk 0:01:20]}
34... Raa7 {[%clk 0:01:04.2]} 35. Rc4 {[%clk 0:01:18.5]} 35... h5 {[%clk
0:00:54.8]} 36. h3 {[%clk 0:01:18.6]} 36... Rb8 {[%clk 0:00:53]} 37. Kc2 {[%clk
0:01:13.6]} 37... Rh8 {[%clk 0:00:48.1]} 38. Nc5 {[%clk 0:01:08.7]} 38... Nf4
{[%clk 0:00:48.9]} 39. b5 {[%clk 0:01:02.9]} 39... Nxh3 {[%clk 0:00:47.1]} 40.
gxh5 {[%clk 0:01:03.5]} 40... Nxf2 {[%clk 0:00:34.5]} 41. b6 {[%clk 0:01:00.5]}
41... Re7 {[%clk 0:00:35.4]} 42. h6+ {[%clk 0:00:59.8]} 42... Kh7 {[%clk
0:00:36.3]} 43. Rcxd4 {[%clk 0:00:59.7]} 43... g4 {[%clk 0:00:33.6]} 44. Rf4
{[%clk 0:00:44.4]} 44... g3 {[%clk 0:00:34.3]} 45. Nd7 {[%clk 0:00:27.5]} 45...
Rc8+ {[%clk 0:00:21.1]} 46. Kb3 {[%clk 0:00:27]} 46... g2 {[%clk 0:00:20.7]} 47.
Nf6+ {[%clk 0:00:24.1]} 47... Kh8 {[%clk 0:00:21.8]} 48. Rfd4 {[%clk 0:00:17.2]}
48... Ree8 {[%clk 0:00:12.1]} 49. Nxe8 {[%clk 0:00:09.5]} 49... g1=Q {[%clk
0:00:13]} 50. Rd8 {[%clk 0:00:09.4]} 50... Qb1+ {[%clk 0:00:08.6]} 51. Ka4
{[%clk 0:00:05]} 51... Rxd8 {[%clk 0:00:08.8]} 52. Rxd8 {[%clk 0:00:05.7]} 52...
Qxb6 {[%clk 0:00:09.8]} 53. Rc8 {[%clk 0:00:03.3]} 53... Qa6+ {[%clk 0:00:10.5]}
54. Kb4 {[%clk 0:00:04.5]} 54... Qxc8 {[%clk 0:00:11.8]} 0-1

[Event "*** Titled Tuesday Blitz"]
[Site "Chess.com"]
[Date "2019.12.03"]
[Round "5"]
[White "TigrVShlyape"]
[Black "matiss90"]
[Result "1-0"]
[WhiteElo "2844"]
[BlackElo "2563"]
[TimeControl "180+2"]
[EndTime "14:07:36 PST"]
[Termination "TigrVShlyape won by resignation"]

1. d4 {[%clk 0:03:01.9]} 1... Nf6 {[%clk 0:03:00.8]} 2. Nf3 {[%clk 0:03:02.6]}
2... g6 {[%clk 0:03:02.1]} 3. Bf4 {[%clk 0:03:02.8]} 3... Bg7 {[%clk 0:03:03.4]}
4. c3 {[%clk 0:03:03.2]} 4... d6 {[%clk 0:03:04.6]} 5. h3 {[%clk 0:03:04.2]}
5... O-O {[%clk 0:03:03]} 6. e3 {[%clk 0:03:05.5]} 6... Nfd7 {[%clk 0:03:04]} 7.
Be2 {[%clk 0:03:05.8]} 7... e5 {[%clk 0:03:05.1]} 8. Bh2 {[%clk 0:03:06.7]} 8...
Nc6 {[%clk 0:03:06]} 9. Nbd2 {[%clk 0:03:04.8]} 9... Qe7 {[%clk 0:03:07.1]} 10.
Nc4 {[%clk 0:03:04.1]} 10... Kh8 {[%clk 0:03:06]} 11. Qc2 {[%clk 0:02:56.1]}
11... b5 {[%clk 0:02:45.2]} 12. Ncd2 {[%clk 0:02:54.8]} 12... b4 {[%clk
0:02:45.4]} 13. O-O {[%clk 0:02:50]} 13... bxc3 {[%clk 0:02:46.3]} 14. bxc3
{[%clk 0:02:50.2]} 14... f5 {[%clk 0:02:21.1]} 15. Rab1 {[%clk 0:02:49.5]} 15...
Nb6 {[%clk 0:02:11.3]} 16. Nc4 {[%clk 0:02:49.9]} 16... f4 {[%clk 0:02:03.4]}
17. dxe5 {[%clk 0:02:47]} 17... dxe5 {[%clk 0:01:50.8]} 18. Nfd2 {[%clk
0:01:54.8]} 18... Bf5 {[%clk 0:01:33.3]} 19. e4 {[%clk 0:01:52.8]} 19... Be6
{[%clk 0:01:25.9]} 20. a4 {[%clk 0:01:47.4]} 20... f3 {[%clk 0:01:10.9]} 21.
gxf3 {[%clk 0:01:26.8]} 21... Bxh3 {[%clk 0:01:08.1]} 22. Rfd1 {[%clk
0:01:22.4]} 22... Qg5+ {[%clk 0:01:04.9]} 23. Bg3 {[%clk 0:01:23.4]} 23... h5
{[%clk 0:01:03.4]} 24. Kh2 {[%clk 0:01:24.3]} 24... Be6 {[%clk 0:01:03.8]} 25.
Rh1 {[%clk 0:01:17.2]} 25... Rad8 {[%clk 0:00:40.8]} 26. Kg2 {[%clk 0:01:11.9]}
26... Qf6 {[%clk 0:00:23.8]} 27. Ne3 {[%clk 0:01:02.2]} 27... Bh6 {[%clk
0:00:14.6]} 28. a5 {[%clk 0:01:01.6]} 28... Nd7 {[%clk 0:00:10.6]} 29. Ndc4
{[%clk 0:00:48.4]} 29... Nc5 {[%clk 0:00:08.4]} 30. Rb5 {[%clk 0:00:39.5]} 30...
Nd7 {[%clk 0:00:04.1]} 31. Nd5 {[%clk 0:00:33.8]} 31... Bxd5 {[%clk 0:00:04.8]}
32. exd5 {[%clk 0:00:34.3]} 32... Ne7 {[%clk 0:00:05.1]} 33. Qe4 {[%clk
0:00:30.7]} 33... Bg7 {[%clk 0:00:04]} 34. Bh4 {[%clk 0:00:21.9]} 34... g5
{[%clk 0:00:05]} 35. Bg3 {[%clk 0:00:21.6]} 35... h4 {[%clk 0:00:06.1]} 36. Ne3
{[%clk 0:00:20.3]} 36... Ng6 {[%clk 0:00:06.5]} 37. Bd3 {[%clk 0:00:18.8]} 37...
Kh7 {[%clk 0:00:06.2]} 38. Ng4 {[%clk 0:00:16.9]} 38... Qf7 {[%clk 0:00:06.8]}
39. Bxh4 {[%clk 0:00:17.9]} 39... gxh4 {[%clk 0:00:07.5]} 40. Rxh4+ {[%clk
0:00:19]} 40... Kg8 {[%clk 0:00:08.2]} 41. Qxg6 {[%clk 0:00:19.9]} 41... Qxg6
{[%clk 0:00:09.3]} 42. Bxg6 {[%clk 0:00:20.2]} 42... Nf6 {[%clk 0:00:06.3]} 43.
c4 {[%clk 0:00:19.3]} 43... Nxg4 {[%clk 0:00:07]} 44. Rxg4 {[%clk 0:00:19]}
44... Rf4 {[%clk 0:00:07.9]} 45. Be4 {[%clk 0:00:19.9]} 45... Rxg4+ {[%clk
0:00:08.4]} 46. fxg4 {[%clk 0:00:20.7]} 46... Bf8 {[%clk 0:00:05.9]} 47. a6
{[%clk 0:00:19.5]} 47... Bd6 {[%clk 0:00:05.7]} 48. Rb7 {[%clk 0:00:20.1]} 48...
Ra8 {[%clk 0:00:05.5]} 49. c5 {[%clk 0:00:19.8]} 49... Bxc5 {[%clk 0:00:06.7]}
50. Rxc7 {[%clk 0:00:20.9]} 50... Bb6 {[%clk 0:00:07.7]} 51. Rd7 {[%clk
0:00:21.2]} 51... Re8 {[%clk 0:00:08.4]} 52. f3 {[%clk 0:00:21.5]} 52... Kf8
{[%clk 0:00:09.3]} 53. g5 {[%clk 0:00:20.8]} 53... Re7 {[%clk 0:00:09.9]} 54.
Rd6 {[%clk 0:00:22.2]} 54... Rg7 {[%clk 0:00:09.1]} 55. g6 {[%clk 0:00:23]}
55... Ke7 {[%clk 0:00:09.7]} 56. Re6+ {[%clk 0:00:24.1]} 56... Kd7 {[%clk
0:00:11]} 57. Kh3 {[%clk 0:00:25.4]} 57... Bd4 {[%clk 0:00:11.4]} 58. Kg4 {[%clk
0:00:26.5]} 58... Rg8 {[%clk 0:00:12]} 59. Kg5 {[%clk 0:00:26.6]} 59... Be3+
{[%clk 0:00:11.2]} 60. Kf6 {[%clk 0:00:27.7]} 60... Bd4 {[%clk 0:00:04.9]} 61.
g7 {[%clk 0:00:27.5]} 61... Bc5 {[%clk 0:00:03.9]} 62. Kf7 {[%clk 0:00:28.4]}
62... Rxg7+ {[%clk 0:00:03.8]} 63. Kxg7 {[%clk 0:00:29.3]} 1-0

[Event "*** Titled Tuesday Blitz"]
[Site "Chess.com"]
[Date "2019.12.03"]
[Round "5"]
[White "Korchmar_Vasiliy"]
[Black "Gentlejimmy7"]
[Result "1/2-1/2"]
[WhiteElo "2746"]
[BlackElo "2585"]
[TimeControl "180+2"]
[EndTime "14:08:04 PST"]
[Termination "Game drawn - insufficient material"]

1. d4 {[%clk 0:03:01.2]} 1... Nf6 {[%clk 0:01:47.3]} 2. c4 {[%clk 0:03:02.2]}
2... g6 {[%clk 0:01:48.4]} 3. Nc3 {[%clk 0:03:03.1]} 3... d5 {[%clk 0:01:49.9]}
4. Nf3 {[%clk 0:03:03.5]} 4... Bg7 {[%clk 0:01:50.8]} 5. Bf4 {[%clk 0:03:04.8]}
5... O-O {[%clk 0:01:45.2]} 6. e3 {[%clk 0:03:06.2]} 6... c5 {[%clk 0:01:46.2]}
7. dxc5 {[%clk 0:03:08]} 7... dxc4 {[%clk 0:01:45.5]} 8. Qxd8 {[%clk 0:03:06.7]}
8... Rxd8 {[%clk 0:01:46]} 9. Bxc4 {[%clk 0:03:08.6]} 9... Bd7 {[%clk
0:01:40.4]} 10. O-O-O {[%clk 0:03:05.2]} 10... Nc6 {[%clk 0:01:40.5]} 11. Ng5
{[%clk 0:03:02.5]} 11... Be8 {[%clk 0:01:37.3]} 12. a3 {[%clk 0:03:01.5]} 12...
h6 {[%clk 0:01:35.6]} 13. Nge4 {[%clk 0:03:02]} 13... Nxe4 {[%clk 0:01:35.1]}
14. Nxe4 {[%clk 0:03:03.9]} 14... Ne5 {[%clk 0:01:28.5]} 15. Bd5 {[%clk
0:02:58.8]} 15... Rab8 {[%clk 0:01:24.5]} 16. b4 {[%clk 0:02:59.4]} 16... b6
{[%clk 0:01:21.8]} 17. Kc2 {[%clk 0:02:49]} 17... Rdc8 {[%clk 0:01:16.2]} 18.
Bb3 {[%clk 0:02:35.9]} 18... Bc6 {[%clk 0:01:07.4]} 19. Rd4 {[%clk 0:02:29.3]}
19... bxc5 {[%clk 0:00:58.5]} 20. Nxc5 {[%clk 0:02:29.5]} 20... Ba8 {[%clk
0:00:57.9]} 21. f3 {[%clk 0:02:28.2]} 21... a5 {[%clk 0:00:58.6]} 22. Rhd1
{[%clk 0:02:22]} 22... axb4 {[%clk 0:00:59.1]} 23. axb4 {[%clk 0:02:23.9]} 23...
Bc6 {[%clk 0:00:59.4]} 24. Bg3 {[%clk 0:02:03]} 24... Ra8 {[%clk 0:00:57.7]} 25.
Kb2 {[%clk 0:01:47]} 25... Bb5 {[%clk 0:00:57.7]} 26. Be1 {[%clk 0:01:39.7]}
26... Nc6 {[%clk 0:00:58.3]} 27. Bc3 {[%clk 0:01:39.6]} 27... Nxd4 {[%clk
0:00:57.8]} 28. exd4 {[%clk 0:01:41.5]} 28... e6 {[%clk 0:00:57]} 29. Ne4 {[%clk
0:01:27.4]} 29... Ba4 {[%clk 0:00:52.6]} 30. Bxa4 {[%clk 0:01:21.6]} 30... Rxa4
{[%clk 0:00:52.9]} 31. Kb3 {[%clk 0:01:23.5]} 31... Ra7 {[%clk 0:00:50.9]} 32.
b5 {[%clk 0:01:21.6]} 32... Bf8 {[%clk 0:00:42]} 33. Bb4 {[%clk 0:01:11.8]}
33... Bxb4 {[%clk 0:00:38.2]} 34. Kxb4 {[%clk 0:01:13.7]} 34... Rc2 {[%clk
0:00:38.6]} 35. Rb1 {[%clk 0:01:08.8]} 35... Rb7 {[%clk 0:00:34.1]} 36. Nc5
{[%clk 0:01:06.8]} 36... Rb8 {[%clk 0:00:32.5]} 37. Ka5 {[%clk 0:01:04.8]} 37...
Ra2+ {[%clk 0:00:32.1]} 38. Kb4 {[%clk 0:01:06.2]} 38... Rxg2 {[%clk 0:00:32.6]}
39. Na6 {[%clk 0:01:04.5]} 39... Rb7 {[%clk 0:00:31.3]} 40. Nc5 {[%clk
0:00:44.2]} 40... Rb8 {[%clk 0:00:31.4]} 41. Kc4 {[%clk 0:00:45.6]} 41... Rc2+
{[%clk 0:00:30.8]} 42. Kd3 {[%clk 0:00:44.1]} 42... Rxh2 {[%clk 0:00:31.5]} 43.
b6 {[%clk 0:00:45.3]} 43... Ra2 {[%clk 0:00:32.1]} 44. Nd7 {[%clk 0:00:30.1]}
44... Rb7 {[%clk 0:00:31.8]} 45. Nc5 {[%clk 0:00:31.5]} 45... Rb8 {[%clk
0:00:32.5]} 46. Ke4 {[%clk 0:00:33.1]} 46... Kg7 {[%clk 0:00:33.2]} 47. Ke5
{[%clk 0:00:33.7]} 47... h5 {[%clk 0:00:32.6]} 48. b7 {[%clk 0:00:29.7]} 48...
Ra7 {[%clk 0:00:31.1]} 49. Kd6 {[%clk 0:00:31]} 49... g5 {[%clk 0:00:29.1]} 50.
Kc7 {[%clk 0:00:32.1]} 50... Rbxb7+ {[%clk 0:00:27.8]} 51. Nxb7 {[%clk 0:00:34]}
51... Ra3 {[%clk 0:00:26.6]} 52. Rg1 {[%clk 0:00:29.9]} 52... Kf6 {[%clk
0:00:25.9]} 53. Nd6 {[%clk 0:00:27.2]} 53... Rxf3 {[%clk 0:00:21.6]} 54. Ne4+
{[%clk 0:00:28.7]} 54... Kf5 {[%clk 0:00:18.5]} 55. Nxg5 {[%clk 0:00:30.1]}
55... Rd3 {[%clk 0:00:19.4]} 56. d5 {[%clk 0:00:21.1]} 56... Rxd5 {[%clk
0:00:19.1]} 57. Nxf7 {[%clk 0:00:20]} 57... Kf6 {[%clk 0:00:20.4]} 58. Nd6
{[%clk 0:00:18.2]} 58... Rd3 {[%clk 0:00:19]} 59. Ne4+ {[%clk 0:00:14.8]} 59...
Kf5 {[%clk 0:00:18.7]} 60. Ng3+ {[%clk 0:00:15.3]} 60... Rxg3 {[%clk 0:00:19.5]}
61. Rxg3 {[%clk 0:00:16]} 61... h4 {[%clk 0:00:21.1]} 62. Rg8 {[%clk 0:00:11.8]}
62... h3 {[%clk 0:00:20.7]} 63. Kd6 {[%clk 0:00:13.3]} 63... Kf4 {[%clk
0:00:22]} 64. Rh8 {[%clk 0:00:04.7]} 64... Kg3 {[%clk 0:00:22]} 65. Rg8+ {[%clk
0:00:04.8]} 65... Kf2 {[%clk 0:00:22.6]} 66. Rf8+ {[%clk 0:00:05.6]} 66... Kg2
{[%clk 0:00:23.6]} 67. Rg8+ {[%clk 0:00:06.7]} 67... Kf2 {[%clk 0:00:24.7]} 68.
Rh8 {[%clk 0:00:07.2]} 68... Kg2 {[%clk 0:00:25.4]} 69. Kxe6 {[%clk 0:00:06.2]}
69... h2 {[%clk 0:00:26.3]} 70. Rg8+ {[%clk 0:00:07.4]} 70... Kf2 {[%clk
0:00:27.6]} 71. Rh8 {[%clk 0:00:09.3]} 71... Kg2 {[%clk 0:00:28.6]} 72. Rxh2+
{[%clk 0:00:10.3]} 72... Kxh2 {[%clk 0:00:29.6]} 1/2-1/2

[Event "*** Titled Tuesday Blitz"]
[Site "Chess.com"]
[Date "2019.12.03"]
[Round "5"]
[White "LastHeroJr"]
[Black "PowerThinking2650"]
[Result "0-1"]
[WhiteElo "2529"]
[BlackElo "2363"]
[TimeControl "180+2"]
[EndTime "14:08:09 PST"]
[Termination "PowerThinking2650 won by resignation"]

1. e4 {[%clk 0:03:01.9]} 1... e5 {[%clk 0:03:00.2]} 2. Nf3 {[%clk 0:03:02.7]}
2... Nc6 {[%clk 0:03:00.8]} 3. Bc4 {[%clk 0:03:03.8]} 3... Nf6 {[%clk
0:03:00.5]} 4. d3 {[%clk 0:03:04.1]} 4... h6 {[%clk 0:03:01]} 5. O-O {[%clk
0:03:03.7]} 5... d6 {[%clk 0:03:02.2]} 6. c3 {[%clk 0:02:56.7]} 6... g6 {[%clk
0:03:02.2]} 7. Re1 {[%clk 0:02:56.5]} 7... Bg7 {[%clk 0:03:02.6]} 8. Nbd2 {[%clk
0:02:57.7]} 8... O-O {[%clk 0:03:02.6]} 9. Nf1 {[%clk 0:02:58.3]} 9... Nh5
{[%clk 0:03:00.3]} 10. Ng3 {[%clk 0:02:47.9]} 10... Nxg3 {[%clk 0:02:49.2]} 11.
hxg3 {[%clk 0:02:49.8]} 11... Kh7 {[%clk 0:02:29.6]} 12. d4 {[%clk 0:02:50.2]}
12... Qe7 {[%clk 0:02:21.1]} 13. Be3 {[%clk 0:02:33.4]} 13... Bg4 {[%clk
0:02:09.9]} 14. dxe5 {[%clk 0:02:08.8]} 14... dxe5 {[%clk 0:01:44.2]} 15. Be2
{[%clk 0:01:49.4]} 15... Be6 {[%clk 0:01:44.3]} 16. b4 {[%clk 0:01:41.6]} 16...
Rfd8 {[%clk 0:01:21.4]} 17. Qc2 {[%clk 0:01:25.1]} 17... Kh8 {[%clk 0:01:10.1]}
18. Bb5 {[%clk 0:00:56.4]} 18... a6 {[%clk 0:01:09.5]} 19. Be2 {[%clk
0:00:52.1]} 19... Rd7 {[%clk 0:01:00.5]} 20. a4 {[%clk 0:00:32.3]} 20... a5
{[%clk 0:00:46.8]} 21. Bc5 {[%clk 0:00:31.6]} 21... Qe8 {[%clk 0:00:44.9]} 22.
Bb5 {[%clk 0:00:29.3]} 22... axb4 {[%clk 0:00:35.7]} 23. cxb4 {[%clk 0:00:31.2]}
23... Rdd8 {[%clk 0:00:26.7]} 24. Qc3 {[%clk 0:00:25]} 24... Bd7 {[%clk
0:00:22.8]} 25. a5 {[%clk 0:00:19.7]} 25... Nd4 {[%clk 0:00:12.5]} 26. Bxd4
{[%clk 0:00:12.9]} 26... exd4 {[%clk 0:00:11.8]} 27. Bxd7 {[%clk 0:00:09.6]}
27... dxc3 {[%clk 0:00:10.9]} 28. Bxe8 {[%clk 0:00:10.9]} 28... Rxe8 {[%clk
0:00:10.4]} 29. e5 {[%clk 0:00:12.4]} 29... Rad8 {[%clk 0:00:10]} 30. Rac1
{[%clk 0:00:10.5]} 30... g5 {[%clk 0:00:10.4]} 31. g4 {[%clk 0:00:10.3]} 31...
Rd3 {[%clk 0:00:10.4]} 32. Re2 {[%clk 0:00:10.3]} 32... h5 {[%clk 0:00:07.5]}
33. Nxg5 {[%clk 0:00:09.1]} 33... Kg8 {[%clk 0:00:07.4]} 34. gxh5 {[%clk
0:00:09.1]} 34... Rxe5 {[%clk 0:00:08.2]} 35. Rxe5 {[%clk 0:00:09.1]} 35... Bxe5
{[%clk 0:00:09.3]} 36. Nf3 {[%clk 0:00:10.4]} 36... Bf6 {[%clk 0:00:09.3]} 37.
Kf1 {[%clk 0:00:11.7]} 37... Be7 {[%clk 0:00:09.1]} 38. Ke2 {[%clk 0:00:12.1]}
38... Rd5 {[%clk 0:00:08.8]} 39. Rxc3 {[%clk 0:00:13.2]} 39... c6 {[%clk
0:00:10.3]} 40. Rc4 {[%clk 0:00:13.5]} 40... Rxh5 {[%clk 0:00:10.6]} 41. g4
{[%clk 0:00:14.3]} 41... Rb5 {[%clk 0:00:11.5]} 42. a6 {[%clk 0:00:13.4]} 42...
bxa6 {[%clk 0:00:11.6]} 43. Rxc6 {[%clk 0:00:14.7]} 43... Rxb4 {[%clk
0:00:11.9]} 44. Ne5 {[%clk 0:00:14]} 44... a5 {[%clk 0:00:12.5]} 45. Rc8+ {[%clk
0:00:11.9]} 45... Kg7 {[%clk 0:00:13]} 46. Ra8 {[%clk 0:00:12.3]} 46... Re4+
{[%clk 0:00:13.5]} 47. Kf3 {[%clk 0:00:13.5]} 47... Rxe5 {[%clk 0:00:14.5]} 48.
Ra7 {[%clk 0:00:14.7]} 48... Kf8 {[%clk 0:00:14.3]} 49. Ra8+ {[%clk 0:00:15.5]}
49... Kg7 {[%clk 0:00:15.2]} 50. Ra7 {[%clk 0:00:17.4]} 50... Bg5 {[%clk
0:00:14.9]} 51. Kg3 {[%clk 0:00:18.1]} 51... Rb5 {[%clk 0:00:15.2]} 52. Ra6
{[%clk 0:00:15.2]} 52... Be7 {[%clk 0:00:12.6]} 53. Kf4 {[%clk 0:00:12]} 53...
Rb4+ {[%clk 0:00:11.7]} 54. Kf5 {[%clk 0:00:12.7]} 54... a4 {[%clk 0:00:12]} 55.
f4 {[%clk 0:00:10.1]} 55... a3 {[%clk 0:00:12]} 56. g5 {[%clk 0:00:10]} 56...
Rb5+ {[%clk 0:00:12.2]} 57. Kg4 {[%clk 0:00:11.4]} 57... Rb4 {[%clk 0:00:12.4]}
58. Kf5 {[%clk 0:00:10.1]} 58... Bc5 {[%clk 0:00:11.7]} 59. g6 {[%clk
0:00:10.5]} 59... fxg6+ {[%clk 0:00:08.5]} 60. Rxg6+ {[%clk 0:00:12.4]} 60...
Kf7 {[%clk 0:00:09.6]} 61. Rf6+ {[%clk 0:00:13.9]} 61... Ke7 {[%clk 0:00:10.4]}
62. Re6+ {[%clk 0:00:15.3]} 62... Kd7 {[%clk 0:00:11.5]} 63. Ra6 {[%clk
0:00:17.2]} 63... Rb6 {[%clk 0:00:12.1]} 64. Ra5 {[%clk 0:00:16.6]} 64... Kc6
{[%clk 0:00:13.1]} 65. Ke5 {[%clk 0:00:16.3]} 65... Rb5 {[%clk 0:00:13.7]} 66.
Ra4 {[%clk 0:00:15.4]} 66... Bb4+ {[%clk 0:00:12.4]} 67. Ke6 {[%clk 0:00:15.3]}
67... Kc5 {[%clk 0:00:13.8]} 68. Ra8 {[%clk 0:00:12.3]} 68... Ra5 {[%clk
0:00:14.7]} 69. Rc8+ {[%clk 0:00:13.1]} 69... Kd4 {[%clk 0:00:15.7]} 70. Rb8
{[%clk 0:00:10.1]} 70... Kc3 {[%clk 0:00:16.3]} 71. Rc8+ {[%clk 0:00:11.1]}
71... Kb3 {[%clk 0:00:16.9]} 0-1